Cogmind - Beta 13 @@@ ROGUE MODE // 2024.04.01 @ 17:41:59 Player: Olafz Result: Destroyed by S-10 Pest with Light Assault Rifle Performance ------------- Evolutions (1) 500 Regions Visited (3) 600 Robots Destroyed (20) 100 Value Destroyed (357) 357 Prototype IDs (1) 20 Alien Tech Used (0) 0 Bonus (0) 0 TOTAL SCORE: 1577 Bonus ------- None Cogmind --------- Core Integrity 0/400 Matter 290/300 Energy 98/100 System Corruption 0% Temperature Cool (6) Movement Flying (37) Location -9/Storage Parts ------- > --- POWER (1) -------- (None) > --- PROPULSION (2) --- Improved Flight Unit Improved Flight Unit > --- UTILITY (4) ------ Signal Interpreter Transport Network Coupler > --- WEAPON (2) ------- Heavy Hammer > --- INVENTORY (5) ---- Improved Flight Unit Improved Flight Unit Signal Interpreter Heavy Hammer Peak State ------------ > --- POWER ------------ (None) > --- PROPULSION ------- Improved Flight Unit Surge Thruster > --- UTILITY ---------- Weight Redist. System Weight Redist. System Signal Interpreter Transport Network Coupler > --- WEAPON ----------- Heavy Hammer > --- INVENTORY -------- Improved Flight Unit Improved Flight Unit Improved Flight Unit Signal Interpreter Heavy Hammer [Rating: 15] Favorites ----------- Power Ion Engine Engine Ion Engine Propulsion Hover Unit Leg Aluminum Leg Hover Unit Hover Unit Flight Unit Surge Thruster Utility Signal Interpreter Device Weight Redist. System Storage Medium Storage Unit Processor Signal Interpreter Protection Light Armor Plating Weapon Heavy Hammer Energy Gun EM Pulse Gun Impact Weapon Heavy Hammer Build | -11 -10 -9 -9 ------- Run | Yrd Mat Mat Sto Slots Evolved 2 | . . 2 . Power . | . . . . Propulsion . | . . . . Utility 2 | . . 2 . Weapon . | . . . . Parts Attached 30 | 4 8 15 3 Power 3 | 1 1 1 . Engine 3 | 1 1 1 . Core . | . . . . Reactor . | . . . . Propulsion 11 | 2 3 4 2 Treads . | . . . . Leg 2 | 2 . . . Wheel . | . . . . Hover 3 | . 3 . . Flight 6 | . . 4 2 Utility 7 | . 3 3 1 Device 3 | . 1 2 . Storage 1 | . . 1 . Processor 2 | . 1 . 1 Hackware . | . . . . Protection 1 | . 1 . . Artifact . | . . . . Weapon 9 | 1 1 7 . Energy Gun 2 | 1 1 . . Energy Cannon . | . . . . Ballistic Gun . | . . . . Ballistic Cannon . | . . . . Launcher . | . . . . Special Weapon . | . . . . Impact Weapon 7 | . . 7 . Slashing Weapon . | . . . . Piercing Weapon . | . . . . Special Melee Weapon . | . . . . Unidentified Prototypes 1 | . . . 1 Parts Lost 9 | . 2 5 2 Power 1 | . . 1 . Propulsion 4 | . 1 3 . Utility 3 | . . 1 2 Weapon 1 | . 1 . . Highest Loss Streak 2 | . 2 2 2 To Critical Strikes . | . . . . Average Slot Usage (%) 59 | . 80 50 67 Engine 8 | . 14 7 . Hover 10 | . 23 6 . Flight 9 | . . 11 18 Device 7 | . 8 4 20 Processor 12 | . 13 11 18 Energy Gun 4 | . 14 1 . Impact Weapon 4 | . . 5 11 Naked Turns . | . . . . Heaviest Build 21 | 7 10 21 3 Greatest Support 20 | 20 20 12 10 Greatest Overweight (x) 3 | . 2 3 . Average Overweight (x) . | . . . . Largest Inventory Capacity 10 | 5 5 10 5 Average Capacity 5 | 5 5 5 5 Most Carried 10 | . 4 10 5 Average Carried 3 | . 2 4 3 Final Capacity 5 | 5 5 5 5 Final Carried 4 | . 4 2 4 Class Distribution -------------------- 92% | Mutant 7% | Sprinter Dominant Class ---------------- Mutant | -10/Materials Mutant | -9/Materials Mutant | -9/Storage Resources | -11 -10 -9 -9 ----------- Run | Yrd Mat Mat Sto Matter Collected 445 | 185 125 75 60 Remotely . | . . . . Salvage Created 568 | 30 204 263 71 Parts 25 | 1 14 8 2 Haulers Intercepted 2 | . . 1 1 Recyclers Shooed . | . . . . Parts Field Recycled . | . . . . Retrieved Matter . | . . . . Parts Self-Destructed . | . . . . Prevented . | . . . . Kills | -11 -10 -9 -9 ------- Run | Yrd Mat Mat Sto Combat Hostiles Destroyed 11 | . 6 4 1 Melee 2 | . . 1 1 Guns 2 | . 2 . . AOE 4 | . 4 . . Classes Destroyed 7 | 1 3 2 1 Worker 2 | . . 2 . Builder 1 | . . . 1 Tunneler 1 | 1 . . . Hauler 2 | . . 1 1 Operator 3 | . 2 1 . Swarmer 4 | . 3 . 1 Grunt 7 | . 3 4 . Best Kill Streak 7 | 1 7 3 2 Combat Bots Only 6 | . 6 3 1 Max Kills in Single Turn 2 | 1 2 1 1 Gunslinging . | . . . . Exploded 2 | . 2 . . Melee 1 | . . 1 1 Uniques/NPCs Destroyed . | . . . . Combat | -11 -10 -9 -9 -------- Run | Yrd Mat Mat Sto Hostile Shots Fired 199 | . 29 134 36 Missed 93 | . 13 66 14 Damage Taken 1040 | . 188 661 191 Core 452 | . 52 316 84 Absorbed by Shields . | . . . . Core Remaining (%) 89 | 100 79 . . Volleys Fired 33 | 5 20 8 . Largest 2 | 1 2 1 . Hottest 80 | 40 80 40 . Shots Fired 36 | 5 23 8 . Gun 36 | 5 23 8 . Cannon . | . . . . Launcher . | . . . . Special . | . . . . Kinetic . | . . . . Thermal 11 | . 3 8 . Explosive . | . . . . Electromagnetic 25 | 5 20 . . Robot Hit Streak 4 | 3 4 3 . Robot Miss Streak 3 | 1 3 3 . Penetration Max . | . . . . Secondary Targets . | . . . . Shots Hit Robots 43 | 4 14 19 6 Core Hits 14 | 1 8 4 1 Critical Kills . | . . . . Critical Parts Destroyed 2 | . . 1 1 Critical Strikes 3 | . 1 1 1 Corrupt 1 | . 1 . . Smash 2 | . . 1 1 Melee Attacks 31 | . . 21 10 Impact 31 | . . 21 10 Slashing . | . . . . Piercing . | . . . . Sneak Attacks 4 | . . 2 2 Combat Hostiles . | . . . . Follow-up Attacks . | . . . . Damage Inflicted 1518 | 104 326 790 298 Guns 276 | 51 181 44 . Cannons . | . . . . Explosions 198 | 53 145 . . Melee 1044 | . . 746 298 Ramming . | . . . . Kinetic . | . . . . Thermal 254 | 53 157 44 . Explosive . | . . . . Electromagnetic 220 | 51 169 . . Impact 1044 | . . 746 298 Slashing . | . . . . Piercing . | . . . . Highest Corruption . | . . . . Average Corruption . | . . . . Corruption Purged . | . . . . Corruption Blocked . | . . . . Overload Shots . | . . . . Overflow Damage 411 | 29 3 254 125 Projectiles . | . . . . Explosions 32 | 29 3 . . Melee 379 | . . 254 125 Knockbacks 3 | . . 1 2 Impact 3 | . . 1 2 Kinetic . | . . . . Secondary . | . . . . Self-Inflicted Damage 29 | . 29 . . Shots 2 | . 2 . . Rammed . | . . . . Targets Rammed . | . . . . Kicked . | . . . . Crushed . | . . . . Highest Temperature 104 | . 104 1 . Average Temperature 36 | . 37 1 . Received Heat Transfer 204 | . 48 129 27 Siege Activations . | . . . . Robots Corrupted . | . . . . Combat Hostiles . | . . . . Parts Fried 9 | . . 5 4 Impact Corruptions 13 | . . 8 5 Robots Melted . | . . . . Combat Hostiles . | . . . . Parts Melted . | . . . . Heat Transferred 275 | 100 75 100 . Parts Sabotaged . | . . . . Parts Stolen . | . . . . Parts Stripped . | . . . . Power Chain Reactions 3 | 1 2 . . Alert | -11 -10 -9 -9 ------- Run | Yrd Mat Mat Sto Peak Influence 576 | 5 176 576 310 Initial 238 | . 3 74 238 Average 172 | 1 58 235 271 Maximum Alert Level 2 | . . 2 1 Low Security (%) 64 | 100 100 53 . Level 1 25 | . . 28 100 Level 2 9 | . . 17 . Level 3 . | . . . . Level 4 . | . . . . Level 5 . | . . . . High Security . | . . . . Max Security . | . . . . Squads Dispatched 6 | . 1 4 1 Investigation 1 | . 1 . . Extermination . | . . . . Reinforcement 5 | . . 4 1 Assault . | . . . . Garrison . | . . . . Intercept . | . . . . Searches Triggered . | . . . . Construction Impeded . | . . . . Haulers Reinforced . | . . . . Active Scanning Responses . | . . . . Cargo Convoy Interrupts . | . . . . Stealth | -11 -10 -9 -9 --------- Run | Yrd Mat Mat Sto Distress Signals 2 | . . 2 . Communications Jammed . | . . . . Distress Signals . | . . . . Times Spotted 58 | . 10 37 11 Peak Tracking Total 14 | . 5 14 13 Tactical Retreats 9 | . 1 8 . Traps | -11 -10 -9 -9 ------- Run | Yrd Mat Mat Sto Traps Triggered 2 | . 1 1 . Indirectly . | . . . . Trap Hack Attempts . | . . . . Triggered . | . . . . Disarmed . | . . . . Reprogrammed . | . . . . Reused . | . . . . Traps Extracted . | . . . . Installed . | . . . . Triggered . | . . . . Machines | -11 -10 -9 -9 ---------- Run | Yrd Mat Mat Sto Machines Disabled . | . . . . Max in Single Turn . | . . . . Machines Repaired . | . . . . Machines Dismantled . | . . . . Machines Sabotaged . | . . . . Overloaded Fab Kills . | . . . . Hacking | -11 -10 -9 -9 --------- Run | Yrd Mat Mat Sto Machines Accessed 5 | . 2 3 . Terminals 5 | . 2 3 . Fabricators . | . . . . Repair Stations . | . . . . Recycling Units . | . . . . Scanalyzers . | . . . . Garrison Access . | . . . . Total Hacks 13 | . 3 10 . Successful 4 | . 1 3 . Failed 9 | . 2 7 . Catastrophic 1 | . . 1 . Database Lockouts . | . . . . Manual 4 | . 2 2 . Terminals 13 | . 3 10 . Fabricators . | . . . . Repair Stations . | . . . . Recycling Units . | . . . . Scanalyzers . | . . . . Garrison Access . | . . . . Terminal Hacks 4 | . 1 3 . Robot Analysis 1 | . . 1 . Emergency Access Points 1 | . 1 . . Repair Station Index 1 | . . 1 . Zone Layout 1 | . . 1 . Fabricator Hacks . | . . . . Repair Station Hacks . | . . . . Recycling Unit Hacks . | . . . . Scanalyzer . | . . . . Garrison Access Hacks . | . . . . Unauthorized Hacks . | . . . . Terminals . | . . . . Fabricators . | . . . . Repair Stations . | . . . . Recycling Units . | . . . . Scanalyzers . | . . . . Garrison Access . | . . . . Data Cores Recovered 2 | . 2 . . Used 1 | . 1 . . Hacking Detections 5 | . 2 3 . Full Trace Events . | . . . . Feedback Events . | . . . . Feedback Blocked . | . . . . Robot Schematics Acquired . | . . . . Robots Built . | . . . . Authchips . | . . . . Time . | . . . . Total Robot Build Rating . | . . . . Part Schematics Acquired . | . . . . Parts Built . | . . . . Authchips . | . . . . Time . | . . . . Total Part Build Rating . | . . . . Parts Repaired . | . . . . Time . | . . . . Parts Recycled . | . . . . Recycled Matter . | . . . . Retrieved Matter . | . . . . Retrieved Components . | . . . . Parts Scanalyzed . | . . . . Part Schematics Acquired . | . . . . Parts Damaged . | . . . . Bothacking | -11 -10 -9 -9 ------------ Run | Yrd Mat Mat Sto Used RIF Installer . | . . . . Robots Hacked . | . . . . Non-combat . | . . . . Combat . | . . . . Robot Hacks Applied . | . . . . Relay Couplers Released . | . . . . Fabnet Peak Effective % . | . . . . Robots Rewired . | . . . . Allies Hacked . | . . . . Hacks Repelled . | . . . . Allies | -11 -10 -9 -9 -------- Run | Yrd Mat Mat Sto Total Allies . | . . . . Largest Group . | . . . . Highest-Rated Group . | . . . . Highest-Rated Ally . | . . . . Total Orders . | . . . . Ally Attacks . | . . . . Total Damage . | . . . . Kills . | . . . . Allies Corrupted . | . . . . Allies Melted . | . . . . Intel | -11 -10 -9 -9 ------- Run | Yrd Mat Mat Sto Robot Analysis Total 1 | . . 1 . Derelict Logs Recovered . | . . . . Drone Launches . | . . . . Drone Recoveries . | . . . . Exploration | -11 -10 -9 -9 ------------- Run | Yrd Mat Mat Sto Turns Passed 654 | 72 149 370 63 Spaces Moved 845 | 55 140 568 82 Core 30 | 13 1 16 . Treads . | . . . . Legs 54 | 42 12 . . Wheels . | . . . . Hover 226 | . 127 99 . Flight 535 | . . 453 82 Fastest Speed 32 | 50 56 32 34 Average Speed 50 | 103 63 44 35 Slowest Speed 200 | 120 150 200 37 Overloaded Moves . | . . . . Propulsion Burnouts . | . . . . Robots Hopped 8 | . . 8 . Cave-ins Triggered . | . . . . Exploration Rate (%) 24 | 4 22 51 21 Regions Visited 3 Branch Regions 1 Pre-discovered Areas . | . . . . Known Exits Taken 2 | . 1 1 . Unknown Exits Taken 1 | 1 . . . Scrap Searched . | . . . . Spaces Dug 2 | . . 2 . Terrain Destroyed 14 | 2 10 2 . Melee 2 | . . 2 . Projectile . | . . . . AOE 12 | 2 10 . . Terrain Rammed . | . . . . Walls Destroyed . | . . . . Machines Disabled . | . . . . Actions | -11 -10 -9 -9 --------- Run | Yrd Mat Mat Sto Total 975 | 63 176 637 99 Wait 13 | . 1 12 . Move 827 | 54 139 552 82 Hop 7 | . . 7 . Pick Up 13 | . 3 7 3 Fast Attach 19 | 4 6 7 2 Attach 9 | . 1 7 1 Detach 10 | . 3 7 . Swap 2 | . 1 1 . Drop 11 | . 2 8 1 Fire 33 | 5 20 8 . Melee 31 | . . 21 10 Ram . | . . . . Kick . | . . . . Crush . | . . . . Escape Stasis . | . . . . Rewire . | . . . . Trap . | . . . . Miscellaneous . | . . . . Route ------- -11/Scrapyard -10/Materials -9/Materials -9/Storage History --------- Turn | Location | Event 2 | -11/Scrapyard | Met Revision 17 7 | -11/Scrapyard | Discovered new exit (range 15) 73 | -11/Scrapyard | Entered Materials 210 | -10/Materials | Discovered new exit (range 16) 221 | -10/Materials | Identified exit to Materials 222 | -10/Materials | Entered another Materials area 222 | -9/Materials | Evolved 2 slots: Utility x2 323 | -9/Materials | Build established: Mutant 553 | -9/Materials | Core integrity fell below 50% 561 | -9/Materials | Discovered new exit (range 12) 564 | -9/Materials | Identified exit to Storage 592 | -9/Materials | Entered Storage 628 | -9/Storage | Core integrity fell below 20% 655 | -9/Storage | Destroyed by S-10 Pest with Light Assault Rifle Last Messages --------------- S010. 00609_ Sneak attack on A-02 Transporter. 00609_ A-02 Transporter destroyed. 00612_ Acquired Prototype Flight Unit. 00612_ Identified Imp. Flight Unit. 00613_ Acquired Imp. Flight Unit. 00618_ Acquired 43 matter. 00619_ Acquired Transport Network Coupler. 00621_ Acquired Imp. Flight Unit. 00622_ Dropped Surge Thruster. 00637_ Destroyed Flight Unit. 00637_ S-10 Pest system corrupted by crushing effect. 00637_ Lgt. Assault Rifle fried. 00637_ S-10 Pest destroyed. 00642_ Weight Redist. System destroyed. 00648_ S-10 Pest suffers critical hit (Smash). 00648_ Destroyed Flight Unit. 00648_ S-10 Pest system corrupted by crushing effect. 00648_ S-10 Pest knocked back. 00653_ Weight Redist. System destroyed. Map ----- +----------------------------------------------------+ | ??????????????????????????????????????????????? | | ??????????????????????????????????????????????? | | ??????????????????????????????????????????????? | | ??????????????????????????????????????????????? | | ????????????a?????????????????????????????????? | | ??????????????????????????????????????????????? | | ??????????????????????????????????????????????? | | ??????????????????????????????????????????????? | | ??????????????????????????????????????????????? | | ?????????????????????????????????????????? ???? | | ??????????????????????????????????????????"???? | | ????????????????????????????????????????? #???? | | ?????????????????????????????######?????? ##??? | | ????????????????????????????## #????? #??? | | ????????????????????????????? ????? #??? | | ?????????????????????????????# ?????? #??? | | ?????????????????????????????# ?????? ???? | | ??????????????????????????????# #######/####?? | | ??????????????????????????????# # T #?? | | ??????????????????????????????# + #??? | | ??????????????????????????????# # ##?? | | ????????????????????########### # """ """ "#?? | | ????????????????????# ] g # # """ """ T#?? | | ????????????????????# sY !# # """ """ "#?? | | ????????????????????# gY Y# # ##?? | | ????????????????????# """@""" + # #??? | | ????????????????????# """ """ # #####+######?? | | ????????????????????# """s""" # #???# #?? #?? | | ????????????????????# s Y # ##### # #?? | | ???????????????????# [ + + #?? | | ???????????????????###" ""############=# #?? | | ?????????????????????#"R""#####??????# #?? #?? | | ?????????????????????#""" #"""#??????#[#????#?? | | ?????????????????????######"R"#??????# #??????? | | ??????????????????????#####" "########[####???? | | ??????????????????????# + ! #???? | | ??????????????????????# """ """ ######+##+#???? | | ??????????????????????# """ """ #???? ??????? | | ??????????????????????# """ """ #???? ""??????? | | ??????????????????????# """ """ #??? """?????? | | ??????????????????????# """ """ #??? """?????? | | ??????????????????????# #??# ????? | | ??????????????????????# [ #??# ????? | | ???????????????##+#########+######?##"T"##????? | | ???????????? #??#"????????? | | ???????????? #???#????????? | | ???????????? #????????????? | | ?????????????##############+######????????????? | | ??????????????????????????????????????????????? | | ??????????????????????????????????????????????? | +----------------------------------------------------+ Best States ------------- Heat Dissipation 28 Energy Generation 10 Energy Capacity 250 Matter Stores 300 Matter Capacity 300 Sight Range 16 Robot Scan Range 14 Terrain Scan Density 10 Additional Mass Support 6 Armor Coverage 150 Evasion (%) 63 Item Schematics ----------------- None Robot Schematics ------------------ None Fabricated ------------ Nothing Alien Tech Used ----------------- None Achievements -------------- None Challenges ------------ None Game ------ Seed ThermicElectronTreads Manual? 0 Play Time 00:24:24 Cumulative 8.7 hours Start 2024.04.01 @ 17:16:08 End 2024.04.01 @ 17:41:59 Sessions 1 Manual Loads 0 Difficulty Rogue Special Mode None Game No. 22 Rogue 20 Adventurer 2 Explorer 0 Win Type - Total 0 Types 0/0/0/0/0/0/0/0/0 Lore% 14 Gallery% 15 Achievement% 15 Wizard Run 0 Options --------- Layout 0 ASCII 0 Keyboard 1 Movement Arrows Keybinds 0 Fullscreen 2 Font 18/SmallcapsGlow Map View 76x50 Zoom Use 0% Tactical HUD 1 Map Filters NONE Filters NONE Steam 1 RUN: 835d0293-1571-4842-9c3b-6caa4add7f3a